fUSD/lending_fUSD_20241224
["ID","MTS","AMOUNT","RATE_DAILY","PERIOD"]
[346519663,1735018270624,-500.0,0.00015341,2]
[346519664,1735018270635,-500.0,0.00015341,2]
[346519665,1735018270646,-621.95,0.00015342,2]
[346519666,1735018270657,-500.0,0.00015342,2]
[346519667,1735018270668,-500.0,0.00015342,2]
[346519668,1735018270678,-500.0,0.00015342,2]
[346519669,1735018270689,-500.0,0.00015342,2]
[346519670,1735018270700,-500.0,0.00015342,2]
[346519671,1735018270711,-500.0,0.00015342,2]
[346519672,1735018270722,-310.1,0.00015342,2]
[346519673,1735018270732,-500.0,0.00015342,2]
[346519674,1735018270742,-500.0,0.00015342,2]
[346519675,1735018270754,-500.0,0.00015342,2]
[346519676,1735018270764,-500.0,0.00015342,2]
[346519677,1735018270775,-500.0,0.00015342,2]
[346519678,1735018270786,-546.3,0.00015342,2]
[346519679,1735018270796,-500.0,0.00015342,2]
[346519680,1735018270807,-658.36,0.00015342,2]
[346519681,1735018270818,-500.0,0.00015342,2]
[346519682,1735018270828,-500.0,0.00015342,2]
[346519683,1735018270839,-500.0,0.00015342,2]
[346519684,1735018270850,-680.9,0.00015342,2]
[346519685,1735018270862,-500.0,0.00015342,2]
[346519686,1735018270872,-500.0,0.00015342,2]
[346519687,1735018270883,-500.0,0.00015342,2]
[346519688,1735018270894,-501.62,0.00015342,2]
[346519689,1735018270906,-586.12,0.00015342,2]
[346519690,1735018270918,-500.0,0.00015342,2]
[346519691,1735018270928,-500.0,0.00015342,2]
[346519692,1735018270939,-500.0,0.00015342,2]
[346519693,1735018270951,-500.0,0.00015342,2]
[346519694,1735018270961,-500.0,0.00015342,2]
[346519695,1735018270972,-500.0,0.00015342,2]
[346519696,1735018270983,-500.0,0.00015342,2]
[346519697,1735018270994,-500.0,0.00015342,2]
[346519698,1735018271005,-500.71,0.00015342,2]
[346519699,1735018271016,-582.46,0.00015342,2]
[346519700,1735018271027,-500.0,0.00015342,2]
[346519701,1735018271037,-500.0,0.00015342,2]
[346519702,1735018271048,-500.0,0.00015342,2]
[346519703,1735018271062,-500.0,0.00015342,2]
[346519704,1735018271074,-500.0,0.00015342,2]
[346519705,1735018271085,-584.84,0.00015342,2]
[346519706,1735018271096,-500.0,0.00015342,2]
[346519707,1735018271106,-667.98,0.00015342,2]
[346519708,1735018271117,-500.0,0.00015342,2]
[346519709,1735018271128,-500.0,0.00015342,2]
[346519710,1735018271142,-500.0,0.00015342,2]
[346519711,1735018271153,-500.0,0.00015342,2]
[346519712,1735018271164,-500.0,0.00015342,2]
[346519713,1735018271175,-500.0,0.00015342,2]
[346519714,1735018271186,-500.0,0.00015342,2]
[346519715,1735018271198,-500.0,0.00015342,2]
[346519716,1735018271210,-711.57,0.00015342,2]
[346519717,1735018271221,-500.0,0.00015342,2]
[346519718,1735018271233,-500.0,0.00015342,2]
[346519719,1735018271244,-500.0,0.00015342,2]
[346519720,1735018271254,-897.7,0.00015342,2]
[346519721,1735018271266,-500.0,0.00015342,2]
[346519722,1735018271277,-500.0,0.00015342,2]
[346519723,1735018271289,-500.0,0.00015342,2]
[346519724,1735018271300,-500.0,0.00015342,2]
[346519725,1735018271311,-500.0,0.00015342,2]
[346519726,1735018271323,-560.63,0.00015342,2]
[346519727,1735018271334,-668.01,0.00015342,2]
[346519728,1735018271345,-500.0,0.00015342,2]
[346519729,1735018271358,-500.0,0.00015342,2]
[346519730,1735018271368,-557.47,0.00015342,2]
[346519731,1735018271380,-500.0,0.00015342,2]
[346519732,1735018271390,-500.0,0.00015342,2]
[346519733,1735018271402,-383.597552,0.00015342,2]
[346519734,1735018271413,-500.0,0.00015342,2]
[346519735,1735018271424,-555.168296,0.00015342,2]
[346519736,1735018271434,-346.5,0.00015342,2]
[346519737,1735018271445,-500.0,0.00015342,2]
[346519738,1735018271456,-500.0,0.00015342,2]
[346519739,1735018271467,-500.0,0.00015342,2]
[346519740,1735018271478,-500.0,0.00015342,2]
[346519741,1735018271490,-946.68,0.00015342,2]
[346519742,1735018271501,-500.0,0.00015342,2]
[346519743,1735018271511,-500.0,0.00015342,2]
[346519744,1735018271522,-500.0,0.00015342,2]
[346519745,1735018271534,-500.0,0.00015342,2]
[346519746,1735018271545,-647.99466185,0.00015342,2]
[346519747,1735018271556,-500.0,0.00015342,2]
[346519748,1735018271568,-500.0,0.00015342,2]
[346519749,1735018271579,-500.0,0.00015342,2]
[346519750,1735018271590,-592.9,0.00015342,2]
[346519751,1735018271601,-547.28,0.00015342,2]
[346519752,1735018271612,-598.2,0.00015342,2]
[346519753,1735018271623,-520.01,0.00015342,2]
[346519754,1735018271635,-500.0,0.00015342,2]
[346519755,1735018271646,-506.66,0.00015342,2]
[346519756,1735018271658,-500.0,0.00015342,2]
[346519757,1735018271669,-500.0,0.00015342,2]
[346519758,1735018271680,-662.17,0.00015342,2]
[346519759,1735018271692,-500.0,0.00015342,2]
[346519760,1735018271705,-500.0,0.00015342,2]
[346519761,1735018271716,-500.0,0.00015342,2]
[346519762,1735018271727,-696.48,0.00015342,2]
[346519763,1735018271738,-500.0,0.00015342,2]
[346519764,1735018271749,-500.0,0.00015342,2]
[346519765,1735018271761,-518.6,0.00015342,2]
[346519766,1735018271772,-500.0,0.00015342,2]
[346519767,1735018271783,-500.0,0.00015342,2]
[346519768,1735018271795,-1152.77,0.00015342,2]
[346519769,1735018271807,-500.0,0.00015342,2]
[346519770,1735018271819,-500.0,0.00015342,2]
[346519771,1735018271830,-500.0,0.00015342,2]
[346519772,1735018271841,-586.32,0.00015342,2]
[346519773,1735018271852,-725.31,0.00015342,2]
[346519774,1735018271863,-500.0,0.00015342,2]
[346519775,1735018271874,-500.0,0.00015342,2]
[346519776,1735018271886,-846.78,0.00015342,2]
[346519777,1735018271898,-500.0,0.00015342,2]
[346519778,1735018271910,-580.76849995,0.00015342,2]
[346519779,1735018271921,-500.0,0.00015342,2]
[346519780,1735018271932,-547.95,0.00015342,2]
[346519781,1735018271943,-713.44,0.00015342,2]
[346519782,1735018271954,-796.84,0.00015342,2]
[346519783,1735018271965,-523.75,0.00015342,2]
[346519784,1735018271977,-500.0,0.00015342,2]
[346519785,1735018271988,-500.0,0.00015342,2]
[346519786,1735018272000,-500.0,0.00015342,2]
[346519787,1735018272011,-500.0,0.00015342,2]
[346519788,1735018272022,-500.0,0.00015342,2]
[346519789,1735018272033,-500.0,0.00015342,2]
[346519790,1735018272045,-500.0,0.00015342,2]
[346519791,1735018272056,-5016.22,0.00015342,2]
[346519792,1735018272068,-1638.06,0.00015342,2]
[346519793,1735018272079,-500.0,0.00015342,2]
[346519794,1735018272091,-551.44,0.00015342,2]
[346519795,1735018272102,-1164.78,0.00015342,2]
[346519796,1735018272112,-500.0,0.00015342,2]
[346519797,1735018272123,-500.0,0.00015342,2]
[346519798,1735018272135,-782.49,0.00015342,2]
[346519799,1735018272150,-1583.85,0.00015342,2]
[346519800,1735018272161,-500.0,0.00015342,2]
[346519801,1735018272172,-901.71,0.00015342,2]
[346519802,1735018272183,-500.0,0.00015342,2]
[346519803,1735018272197,-1977.81,0.00015342,2]
[346519804,1735018272414,-500.0,0.00015342,2]
[346519805,1735018272426,-509.19,0.00015342,2]
[346519806,1735018272437,-500.0,0.00015342,2]
[346519807,1735018272449,-500.0,0.00015342,2]
[346519808,1735018272460,-500.0,0.00015342,2]
[346519809,1735018272470,-500.0,0.00015342,2]
[346519810,1735018272481,-500.0,0.00015342,2]
[346519811,1735018272492,-792.79,0.00015342,2]
[346519812,1735018272503,-849.68,0.00015342,2]
[346519813,1735018272514,-2088.9,0.00015342,2]
[346519814,1735018272525,-500.0,0.00015342,2]
[346519815,1735018272536,-2055.88,0.00015342,2]
[346519816,1735018272547,-500.0,0.00015342,2]
[346519817,1735018272558,-7677.04,0.00015342,2]
[346519818,1735018272569,-543.48,0.00015342,2]
[346519819,1735018272580,-854.97,0.00015342,2]
[346519820,1735018272591,-1395.53,0.00015342,2]
[346519821,1735018272602,-500.0,0.00015342,2]
[346519822,1735018272613,-500.0,0.00015342,2]
[346519823,1735018272624,-500.0,0.00015342,2]
[346519824,1735018272634,-1385.02,0.00015342,2]
[346519825,1735018272645,-500.0,0.00015342,2]
[346519826,1735018272656,-3679.71,0.00015342,2]
[346519827,1735018272666,-500.0,0.00015342,2]
[346519828,1735018272677,-1080.57,0.00015342,2]
[346519829,1735018272688,-500.0,0.00015342,2]
[346519830,1735018272698,-1694.03,0.00015342,2]
[346519831,1735018272711,-500.0,0.00015342,2]
[346519832,1735018272723,-505.35,0.00015342,2]
[346519833,1735018272734,-500.0,0.00015342,2]
[346519834,1735018273115,-1117.85,0.00015342,2]
[346519835,1735018273147,-705.9,0.00015342,2]
[346519836,1735018273163,-1539.8,0.00015342,2]
[346519837,1735018273173,-500.0,0.00015342,2]
[346519838,1735018273183,-2249.94,0.00015342,2]
[346519839,1735018273193,-500.0,0.00015342,2]
[346519840,1735018273204,-500.0,0.00015342,2]
[346519841,1735018273214,-500.0,0.00015342,2]
[346519842,1735018273223,-3833.98,0.00015342,2]
[346519843,1735018273233,-500.0,0.00015342,2]
[346519844,1735018273242,-937.66,0.00015342,2]
[346519845,1735018273251,-500.0,0.00015342,2]
[346519846,1735018273260,-2551.89,0.00015342,2]
[346519847,1735018273269,-586.98,0.00015342,2]
[346519848,1735018273278,-1335.36,0.00015342,2]
[346519849,1735018273288,-500.0,0.00015342,2]
[346519850,1735018273297,-3168.41,0.00015342,2]
[346519851,1735018273306,-1369.41,0.00015342,2]
[346519852,1735018273314,-500.0,0.00015342,2]
[346519853,1735018273323,-575.13,0.00015342,2]
[346519854,1735018273332,-845.43,0.00015342,2]
[346519855,1735018273341,-500.0,0.00015342,2]
[346519856,1735018273349,-887.19,0.00015342,2]
[346519857,1735018273358,-500.0,0.00015342,2]
[346519858,1735018273367,-547.48,0.00015342,2]
[346519859,1735018273375,-716.51,0.00015342,2]
[346519860,1735018273384,-561.45,0.00015342,2]
[346519861,1735018273393,-500.0,0.00015342,2]
[346519862,1735018273402,-500.0,0.00015342,2]
[346519863,1735018273412,-558.02,0.00015342,2]
[346519864,1735018273421,-500.0,0.00015342,2]
[346519865,1735018273431,-500.0,0.00015342,2]
[346519866,1735018273441,-1000.0,0.00015342,2]
[346519867,1735018273452,-500.0,0.00015342,2]
[346519868,1735018273462,-500.0,0.00015342,2]
[346519869,1735018273471,-973.2,0.00015342,2]
[346519870,1735018273480,-3656.76,0.00015342,2]
[346519871,1735018273491,-500.0,0.00015342,2]
[346519872,1735018273500,-997.53,0.00015342,2]
[346519873,1735018273509,-855.77,0.00015342,2]
[346519874,1735018273519,-693.49,0.00015342,2]
[346519875,1735018273529,-500.0,0.00015342,2]
[346519876,1735018273538,-637.35,0.00015342,2]
[346519877,1735018273547,-1739.36,0.00015342,2]
[346519878,1735018273557,-500.0,0.00015342,2]
[346519879,1735018273567,-500.0,0.00015342,2]
[346519880,1735018273576,-705.36,0.00015342,2]
[346519881,1735018273586,-500.0,0.00015342,2]
[346519882,1735018273596,-500.0,0.00015342,2]
[346519883,1735018273606,-1543.65,0.00015342,2]
[346519884,1735018273615,-500.0,0.00015342,2]
[346519885,1735018273625,-820.97,0.00015342,2]
[346519886,1735018273635,-1819.38,0.00015342,2]
[346519887,1735018273644,-4120.74,0.00015342,2]
[346519888,1735018273654,-989.44,0.00015342,2]
[346519889,1735018273664,-910.57,0.00015342,2]
[346519890,1735018273673,-2961.05,0.00015342,2]
[346519891,1735018273683,-500.0,0.00015342,2]
[346519892,1735018273692,-503.58,0.00015342,2]
[346519893,1735018273702,-903.8,0.00015342,2]
[346519894,1735018273712,-596.96,0.00015342,2]
[346519895,1735018273722,-807.94,0.00015342,2]
[346519896,1735018273731,-1456.76,0.00015342,2]
[346519897,1735018273741,-2643.91,0.00015342,2]
[346519898,1735018273751,-1308.53,0.00015342,2]
[346519899,1735018273760,-794.16,0.00015342,2]
[346519900,1735018273769,-1213.29,0.00015342,2]
[346519901,1735018273778,-1676.79,0.00015342,2]
[346519902,1735018273788,-500.0,0.00015342,2]
[346519903,1735018273797,-500.0,0.00015342,2]
[346519904,1735018273807,-5281.26,0.00015342,2]
[346519905,1735018273816,-1433.69,0.00015342,2]
[346519906,1735018273826,-677.19,0.00015342,2]
[346519907,1735018273835,-500.0,0.00015342,2]
[346519908,1735018273844,-1372.29,0.00015342,2]
[346519909,1735018273853,-1023.69,0.00015342,2]
[346519910,1735018273863,-500.0,0.00015342,2]
[346519911,1735018273872,-680.17,0.00015342,2]
[346519912,1735018273882,-552.15,0.00015342,2]
[346519913,1735018273892,-705.72,0.00015342,2]
[346519914,1735018273901,-500.0,0.00015342,2]
[346519915,1735018273911,-674.8,0.00015342,2]
[346519916,1735018273921,-4867.25,0.00015342,2]
[346519917,1735018273931,-3213.6,0.00015342,2]
[346519918,1735018273940,-854.26,0.00015342,2]
[346519919,1735018273951,-500.0,0.00015342,2]
[346519920,1735018273961,-1660.69,0.00015342,2]
[346519921,1735018273970,-500.0,0.00015342,2]
[346519922,1735018273980,-548.87,0.00015342,2]
[346519923,1735018273990,-826.14,0.00015342,2]
[346519924,1735018274000,-500.0,0.00015342,2]
[346519925,1735018274009,-14771.78,0.00015342,2]
[346519926,1735018274019,-619.38,0.00015342,2]
[346519927,1735018274029,-3293.16,0.00015342,2]
[346519928,1735018274039,-500.0,0.00015342,2]
[346519929,1735018274048,-500.0,0.00015342,2]
[346519930,1735018274057,-500.0,0.00015342,2]
[346519931,1735018274067,-500.0,0.00015342,2]
[346519932,1735018274077,-527.97,0.00015342,2]
[346519933,1735018274087,-500.0,0.00015342,2]
[346519934,1735018274096,-500.0,0.00015342,2]
[346519935,1735018274106,-500.0,0.00015342,2]
[346519936,1735018274115,-1071.77,0.00015342,2]
[346519937,1735018274125,-500.0,0.00015342,2]
[346519938,1735018274134,-500.0,0.00015342,2]
[346519939,1735018274147,-150.0,0.0001535,2]
[346519940,1735018274157,-150.0,0.00015364,2]
[346519941,1735018274167,-150.0,0.00015374,2]
[346519942,1735018274177,-150.0,0.00015374,2]
[346519943,1735018274186,-2075.88434638,0.00015392,2]
[346519944,1735018274196,-150.0,0.00015398,2]
[346519945,1735018274207,-150.0,0.00015399,2]
[346519946,1735018274217,-3834.1935773,0.000154,2]
[346519947,1735018274226,-150.0,0.00015422,2]
[346519948,1735018274236,-150.0,0.00015434,2]
[346519949,1735018274246,-150.0,0.00015434,2]
[346519950,1735018274255,-150.0,0.00015445,2]
[346519951,1735018274265,-150.0,0.00015468,2]
[346519952,1735018274274,-150.0,0.00015469,2]
[346519953,1735018274283,-150.0,0.00015493,2]
[346519954,1735018274293,-150.0,0.00015493,2]
[346519955,1735018274303,-150.0,0.00015493,2]
[346519956,1735018274313,-150.0,0.00015503,2]
[346519957,1735018274322,-150.0,0.00015517,2]
[346519958,1735018274332,-150.0,0.00015538,2]
[346519959,1735018274342,-150.0,0.00015541,2]
[346519960,1735018274351,-150.0,0.00015553,2]
[346519961,1735018274362,-150.0,0.00015565,2]
[346519962,1735018274371,-150.0,0.00015573,2]
[346519963,1735018274380,-150.0,0.00015588,2]
[346519964,1735018274390,-150.0,0.00015607,2]
[346519965,1735018274400,-150.0,0.00015612,2]
[346519966,1735018274410,-150.0,0.00015612,2]
[346519967,1735018274419,-500.0,0.00015615,2]
[346519968,1735018274429,-500.0,0.00015615,2]
[346519969,1735018274438,-500.0,0.00015615,2]
[346519970,1735018274448,-500.0,0.00015615,2]
[346519971,1735018274457,-500.0,0.00015615,2]
[346519972,1735018274467,-596.53626488,0.00015615,2]
[346519973,1735018274476,-469.64299775,0.00015615,2]
[346519974,1735018274486,-500.0,0.00015615,2]
[346519975,1735018274495,-500.0,0.00015615,2]
[346519976,1735018274504,-518.65993684,0.00015615,2]
[346519977,1735018274513,-500.0,0.00015615,2]
[346519978,1735018274522,-500.0,0.00015615,2]
[346519979,1735018274532,-256.53125024,0.00015615,2]
[346519980,1735018274541,-500.0,0.00015615,2]
[346519981,1735018274550,-535.15,0.00015615,2]
[346519982,1735018274560,-500.0,0.00015615,2]
[346519983,1735018274569,-500.0,0.00015615,2]
[346519984,1735018274579,-500.0,0.00015615,2]
[346519985,1735018274588,-609.1,0.00015615,2]
[346519986,1735018274598,-500.0,0.00015615,2]
[346519987,1735018274606,-500.0,0.00015615,2]
[346519988,1735018274615,-500.0,0.00015615,2]
[346519989,1735018274625,-500.0,0.00015615,2]
[346519990,1735018274634,-500.0,0.00015615,2]
[346519991,1735018274644,-500.0,0.00015615,2]
[346519992,1735018274653,-500.0,0.00015615,2]
[346519993,1735018274662,-500.0,0.00015615,2]
[346519994,1735018274672,-500.0,0.00015615,2]
[346519995,1735018274682,-500.0,0.00015615,2]
[346519996,1735018274691,-500.0,0.00015615,2]
[346519997,1735018274701,-500.0,0.00015615,2]
[346519998,1735018274710,-500.0,0.00015615,2]
[346519999,1735018274718,-500.0,0.00015615,2]
[346520000,1735018274727,-500.0,0.00015615,2]
[346520001,1735018274737,-500.0,0.00015615,2]
[346520002,1735018274746,-500.0,0.00015615,2]
[346520003,1735018274755,-500.0,0.00015615,2]
[346520004,1735018274765,-191.5,0.00015615,2]
[346520005,1735018274774,-609.95100703,0.00015615,2]
[346520006,1735018274783,-500.0,0.00015615,2]
[346520007,1735018274793,-500.0,0.00015615,2]
[346520008,1735018274802,-500.0,0.00015615,2]
[346520009,1735018274811,-500.0,0.00015615,2]
[346520010,1735018274821,-500.0,0.00015615,2]
[346520011,1735018274830,-500.0,0.00015615,2]
[346520012,1735018274839,-500.0,0.00015615,2]
[346520013,1735018274848,-500.0,0.00015615,2]
[346520014,1735018274858,-500.0,0.00015615,2]
[346520015,1735018274867,-1508.76,0.00015615,2]
[346520016,1735018274877,-500.0,0.00015615,2]
[346520017,1735018274886,-500.0,0.00015615,2]
[346520018,1735018274896,-417.92532141,0.00015615,2]
[346520019,1735018274905,-500.0,0.00015615,2]
[346520020,1735018274915,-500.0,0.00015615,2]
[346520021,1735018274925,-1465.72,0.00015615,2]
[346520022,1735018274937,-500.0,0.00015615,2]
[346520023,1735018274947,-500.0,0.00015615,2]
[346520024,1735018274957,-613.98215391,0.00015615,2]
[346520025,1735018274966,-500.0,0.00015615,2]
[346520026,1735018274975,-500.0,0.00015615,2]
[346520027,1735018274985,-1465.24,0.00015615,2]
[346520028,1735018274994,-500.0,0.00015615,2]
[346520029,1735018275006,-500.0,0.00015615,2]
[346520030,1735018275015,-2919.0,0.00015615,2]
[346520031,1735018275025,-500.0,0.00015615,2]
[346520032,1735018275035,-500.0,0.00015615,2]
[346520033,1735018275045,-2253.9,0.00015615,2]
[346520034,1735018275055,-3237.5,0.00015615,2]
[346520035,1735018275065,-554.59,0.00015615,2]
[346520036,1735018275074,-500.0,0.00015615,2]
[346520037,1735018275083,-794.47,0.00015615,2]
[346520038,1735018275093,-500.0,0.00015615,2]
[346520039,1735018275103,-935.63,0.00015615,2]
[346520040,1735018275112,-500.0,0.00015615,2]
[346520041,1735018275122,-500.0,0.00015615,2]
[346520042,1735018275132,-2816.14,0.00015615,2]
[346520043,1735018275143,-500.0,0.00015615,2]
[346520044,1735018275153,-500.0,0.00015615,2]
[346520045,1735018275162,-500.0,0.00015615,2]
[346520046,1735018275172,-955.57,0.00015615,2]
[346520047,1735018275181,-500.0,0.00015615,2]
[346520048,1735018275191,-500.0,0.00015615,2]
[346520049,1735018275201,-500.0,0.00015615,2]
[346520050,1735018275211,-908.11,0.00015615,2]
[346520051,1735018275220,-500.0,0.00015615,2]
[346520052,1735018275230,-500.0,0.00015615,2]
[346520053,1735018275240,-500.0,0.00015615,2]
[346520054,1735018275249,-500.0,0.00015615,2]
[346520055,1735018275260,-1028.08,0.00015615,2]
[346520056,1735018275269,-568.18,0.00015615,2]
[346520057,1735018275279,-500.0,0.00015615,2]
[346520058,1735018275289,-683.69,0.00015615,2]
[346520059,1735018275299,-505.7397588,0.00015615,2]
[346520060,1735018275308,-500.0,0.00015615,2]
[346520061,1735018275318,-500.0,0.00015615,2]
[346520062,1735018275328,-1115.82,0.00015615,2]
[346520063,1735018275337,-722.75,0.00015615,2]
[346520064,1735018275347,-500.0,0.00015615,2]
[346520065,1735018275357,-1499.78,0.00015615,2]
[346520066,1735018275367,-500.0,0.00015615,2]
[346520067,1735018275376,-500.0,0.00015615,2]
[346520068,1735018275386,-1265.66,0.00015615,2]
[346520069,1735018275395,-500.0,0.00015615,2]
[346520070,1735018275405,-500.0,0.00015615,2]
[346520071,1735018275414,-1225.19,0.00015615,2]
[346520072,1735018275424,-7745.3,0.00015615,2]
[346520073,1735018275434,-500.0,0.00015615,2]
[346520074,1735018275444,-500.0,0.00015615,2]
[346520075,1735018275458,-954.82,0.00015615,2]
[346520076,1735018275469,-500.0,0.00015615,2]
[346520077,1735018275479,-500.0,0.00015615,2]
[346520078,1735018275489,-500.0,0.00015615,2]
[346520079,1735018275499,-500.0,0.00015616,2]
[346520080,1735018275509,-633.99252696,0.00015616,2]
[346520081,1735018275519,-500.0,0.00015616,2]
[346520082,1735018275529,-500.0,0.00015616,2]
[346520083,1735018275713,-500.0,0.00015616,2]
[346520084,1735018275723,-203.26687818,0.00015616,2]
[346520085,1735018275733,-500.0,0.00015616,2]
[346520086,1735018275742,-500.0,0.00015616,2]
[346520087,1735018275752,-500.0,0.00015616,2]
[346520088,1735018275761,-180.69489855,0.00015616,2]
[346520089,1735018275771,-500.0,0.00015616,2]
[346520090,1735018275781,-546.3,0.00015616,2]
[346520091,1735018275790,-500.0,0.00015616,2]
[346520092,1735018275799,-658.36,0.00015616,2]
[346520093,1735018275809,-500.0,0.00015616,2]
[346520094,1735018275818,-500.0,0.00015616,2]
[346520095,1735018275828,-500.0,0.00015616,2]
[346520096,1735018275837,-680.9,0.00015616,2]
[346520097,1735018275847,-500.0,0.00015616,2]
[346520098,1735018275857,-500.0,0.00015616,2]
[346520099,1735018275866,-500.0,0.00015616,2]
[346520100,1735018275876,-501.62,0.00015616,2]
[346520101,1735018275886,-586.12,0.00015616,2]
[346520102,1735018275896,-500.0,0.00015616,2]
[346520103,1735018275906,-500.0,0.00015616,2]
[346520104,1735018275915,-156.80356128,0.00015616,2]
[346520105,1735018275925,-500.0,0.00015616,2]
[346520106,1735018275934,-500.0,0.00015616,2]
[346520107,1735018275943,-500.0,0.00015616,2]
[346520108,1735018275954,-500.0,0.00015616,2]
[346520109,1735018275963,-500.0,0.00015616,2]
[346520110,1735018275973,-500.71,0.00015616,2]
[346520111,1735018275982,-582.46,0.00015616,2]
[346520112,1735018275991,-500.0,0.00015616,2]
[346520113,1735018276000,-500.0,0.00015616,2]
[346520114,1735018276010,-500.0,0.00015616,2]
[346520115,1735018276020,-500.0,0.00015616,2]
[346520116,1735018276029,-500.0,0.00015616,2]
[346520117,1735018276039,-584.84,0.00015616,2]
[346520118,1735018276048,-500.0,0.00015616,2]
[346520119,1735018276058,-667.98,0.00015616,2]
[346520120,1735018276068,-500.0,0.00015616,2]
[346520121,1735018276078,-500.0,0.00015616,2]
[346520122,1735018276088,-500.0,0.00015616,2]
[346520123,1735018276098,-500.0,0.00015616,2]
[346520124,1735018276107,-500.0,0.00015616,2]
[346520125,1735018276117,-500.0,0.00015616,2]
[346520126,1735018276126,-500.0,0.00015616,2]
[346520127,1735018276137,-342.75904337,0.00015616,2]
[346520128,1735018276148,-711.57,0.00015616,2]
[346520129,1735018276158,-500.0,0.00015616,2]
[346520130,1735018276167,-500.0,0.00015616,2]
[346520131,1735018276177,-500.0,0.00015616,2]
[346520132,1735018276187,-897.7,0.00015616,2]
[346520133,1735018276196,-500.0,0.00015616,2]
[346520134,1735018276206,-500.0,0.00015616,2]
[346520135,1735018276216,-500.0,0.00015616,2]
[346520136,1735018276225,-500.0,0.00015616,2]
[346520137,1735018276235,-500.0,0.00015616,2]
[346520138,1735018276245,-560.63,0.00015616,2]
[346520139,1735018276255,-668.01,0.00015616,2]
[346520140,1735018276264,-500.0,0.00015616,2]
[346520141,1735018276273,-500.0,0.00015616,2]
[346520142,1735018276283,-557.47,0.00015616,2]
[346520143,1735018276293,-500.0,0.00015616,2]
[346520144,1735018276302,-500.0,0.00015616,2]
[346520145,1735018276312,-383.597552,0.00015616,2]
[346520146,1735018276322,-500.0,0.00015616,2]
[346520147,1735018276331,-555.168296,0.00015616,2]
[346520148,1735018276341,-500.0,0.00015616,2]
[346520149,1735018276351,-500.0,0.00015616,2]
[346520150,1735018276360,-500.0,0.00015616,2]
[346520151,1735018276369,-500.0,0.00015616,2]
[346520152,1735018276379,-946.68,0.00015616,2]
[346520153,1735018276389,-500.0,0.00015616,2]
[346520154,1735018276398,-500.0,0.00015616,2]
[346520155,1735018276408,-500.0,0.00015616,2]
[346520156,1735018276418,-500.0,0.00015616,2]
[346520157,1735018276427,-500.0,0.00015616,2]
[346520158,1735018276437,-500.0,0.00015616,2]
[346520159,1735018276446,-500.0,0.00015616,2]
[346520160,1735018276456,-592.9,0.00015616,2]
[346520161,1735018276466,-547.28,0.00015616,2]
[346520162,1735018276475,-598.2,0.00015616,2]